[Event "Titled Tuesday Blitz July 25 Early 2023"]
[White "Orlov, Oleg"]
[Black "Miszler, Levente"]
[WhiteFideId "4166612"]
[BlackFideId "763276"]
[WhiteElo "2567"]
[BlackElo "2409"]
[Result "0-1"]
[Round "4"]
[TimeControl "180+2"]
[Date "2023.07.25"]
[WhiteClock "0:02:04"]
[BlackClock "0:01:42"]
[Board "146"]

1. e4 {[%clk 0:03:00]}  c5 {[%clk 0:02:59]} 2. Nf3 {[%clk 0:03:00]}  d6 {[%clk 0:02:58]} 3. d4 {[%clk 0:02:59]}  cxd4 {[%clk 0:02:59]} 4. Nxd4 {[%clk 0:03:00]}  Nf6 {[%clk 0:03:00]} 5. Nc3 {[%clk 0:03:01]}  a6 {[%clk 0:02:59]} 6. Be3 {[%clk 0:03:01]}  Ng4 {[%clk 0:02:57]} 7. Bg5 {[%clk 0:02:59]}  h6 {[%clk 0:02:54]} 8. Bh4 {[%clk 0:03:00]}  g5 {[%clk 0:02:52]} 9. Bg3 {[%clk 0:03:00]}  Bg7 {[%clk 0:02:52]} 10. Be2 {[%clk 0:02:58]}  h5 {[%clk 0:02:47]} 11. h3 {[%clk 0:02:56]}  Nf6 {[%clk 0:02:44]} 12. Qd2 {[%clk 0:02:35]}  Nc6 {[%clk 0:02:34]} 13. Nf5 {[%clk 0:02:30]}  Bxf5 {[%clk 0:02:30]} 14. exf5 {[%clk 0:02:31]}  Qb6 {[%clk 0:02:24]} 15. O-O-O {[%clk 0:02:29]}  Ne4 {[%clk 0:02:21]} 16. Qe3 {[%clk 0:02:17]}  Qxe3+ {[%clk 0:02:13]} 17. fxe3 {[%clk 0:02:17]}  Nxg3 {[%clk 0:02:13]} 18. Rhe1 {[%clk 0:02:16]}  Bxc3 {[%clk 0:02:11]} 19. bxc3 {[%clk 0:02:17]}  Nxe2+ {[%clk 0:02:11]} 20. Rxe2 {[%clk 0:02:18]}  Kd7 {[%clk 0:02:10]} 21. e4 {[%clk 0:02:17]}  Ne5 {[%clk 0:02:10]} 22. g3 {[%clk 0:02:16]}  Rac8 {[%clk 0:02:08]} 23. Re3 {[%clk 0:02:16]}  Rc5 {[%clk 0:02:07]} 24. Rd4 {[%clk 0:02:16]}  Rhc8 {[%clk 0:02:06]} 25. Rb4 {[%clk 0:02:16]}  b5 {[%clk 0:02:05]} 26. Rb3 {[%clk 0:02:15]}  Nc4 {[%clk 0:02:04]} 27. Rd3 {[%clk 0:02:16]}  a5 {[%clk 0:02:04]} 28. Rd5 {[%clk 0:02:09]}  Rxd5 {[%clk 0:02:03]} 29. exd5 {[%clk 0:02:10]}  Rc5 {[%clk 0:02:03]} 30. a4 {[%clk 0:02:09]}  bxa4 {[%clk 0:01:58]} 31. Rb7+ {[%clk 0:02:10]}  Rc7 {[%clk 0:01:59]} 32. Rb8 {[%clk 0:02:10]}  a3 {[%clk 0:01:58]} 33. Kb1 {[%clk 0:02:10]}  Nd2+ {[%clk 0:01:51]} 34. Ka2 {[%clk 0:02:07]}  Rxc3 {[%clk 0:01:50]} 35. Rh8 {[%clk 0:02:06]}  Nc4 {[%clk 0:01:50]} 36. Rxh5 {[%clk 0:02:05]}  Rxc2+ {[%clk 0:01:50]} 37. Ka1 {[%clk 0:02:05]}  Nd2 {[%clk 0:01:42]} 38. Rxg5 {[%clk 0:02:04]}  Nb3+ {[%clk 0:01:41]} 39. Kb1 {[%clk 0:02:04]}  Rb2# {[%clk 0:01:42]} 0-1


[Site "https://www.chess.com"]

[Event "Titled Tuesday Blitz July 25 Early 2023"]
[White "Shishkov, Andrei"]
[Black "Rietze, Clemens, Dr."]
[WhiteFideId "4500563"]
[BlackFideId "24620351"]
[WhiteElo "2549"]
[BlackElo "2402"]
[Result "0-1"]
[Round "4"]
[TimeControl "180+2"]
[Date "2023.07.25"]
[WhiteClock "0:00:01"]
[BlackClock "0:00:15"]
[Board "148"]

1. d4 {[%clk 0:03:00]}  Nf6 {[%clk 0:02:59]} 2. c4 {[%clk 0:03:00]}  g6 {[%clk 0:02:59]} 3. f3 {[%clk 0:03:00]}  Bg7 {[%clk 0:02:59]} 4. e4 {[%clk 0:03:00]}  d6 {[%clk 0:02:59]} 5. Be3 {[%clk 0:03:00]}  O-O {[%clk 0:02:59]} 6. Nc3 {[%clk 0:03:01]}  Nc6 {[%clk 0:03:00]} 7. Qd2 {[%clk 0:03:01]}  Bd7 {[%clk 0:03:00]} 8. O-O-O {[%clk 0:02:58]}  a6 {[%clk 0:02:59]} 9. h4 {[%clk 0:02:57]}  e5 {[%clk 0:02:55]} 10. d5 {[%clk 0:02:57]}  Nd4 {[%clk 0:02:55]} 11. Nce2 {[%clk 0:02:52]}  c5 {[%clk 0:02:50]} 12. dxc6 {[%clk 0:02:52]}  Nxc6 {[%clk 0:02:35]} 13. Qxd6 {[%clk 0:02:50]}  Qa5 {[%clk 0:02:35]} 14. Kb1 {[%clk 0:02:22]}  Be6 {[%clk 0:02:30]} 15. Qc5 {[%clk 0:02:09]}  Qc7 {[%clk 0:02:11]} 16. Nc3 {[%clk 0:02:05]}  Nd7 {[%clk 0:01:56]} 17. Qd6 {[%clk 0:02:02]}  Qa5 {[%clk 0:01:56]} 18. Nd5 {[%clk 0:01:35]}  Rfd8 {[%clk 0:01:55]} 19. Ne2 {[%clk 0:01:05]}  Rac8 {[%clk 0:01:27]} 20. Nec3 {[%clk 0:00:49]}  Bf8 {[%clk 0:01:18]} 21. Bb6 {[%clk 0:00:17]}  Nxb6 {[%clk 0:01:00]} 22. b4 {[%clk 0:00:14]}  Rxd6 {[%clk 0:00:42]} 23. bxa5 {[%clk 0:00:14]}  Nxa5 {[%clk 0:00:43]} 24. c5 {[%clk 0:00:10]}  Rxc5 {[%clk 0:00:43]} 25. Nf6+ {[%clk 0:00:08]}  Kg7 {[%clk 0:00:42]} 26. Ne8+ {[%clk 0:00:08]}  Kg8 {[%clk 0:00:41]} 27. Nxd6 {[%clk 0:00:09]}  Rxc3 {[%clk 0:00:41]} 28. Be2 {[%clk 0:00:08]}  Nc6 {[%clk 0:00:36]} 29. Nxb7 {[%clk 0:00:07]}  Nd4 {[%clk 0:00:34]} 30. Bxa6 {[%clk 0:00:07]}  Ra3 {[%clk 0:00:31]} 31. Bd3 {[%clk 0:00:07]}  Na4 {[%clk 0:00:25]} 32. Rd2 {[%clk 0:00:04]}  Bxa2+ {[%clk 0:00:16]} 33. Kc1 {[%clk 0:00:03]}  Nb3+ {[%clk 0:00:15]} 34. Kd1 {[%clk 0:00:03]}  Nxd2 {[%clk 0:00:16]} 35. Kxd2 {[%clk 0:00:03]}  Rb3 {[%clk 0:00:15]} 36. Na5 {[%clk 0:00:01]}  Rb2+ {[%clk 0:00:15]} 0-1


[Site "https://www.chess.com"]

[Event "Titled Tuesday Blitz July 25 Early 2023"]
[White "Marn, Jan"]
[Black "Fiorito, Francisco"]
[WhiteFideId "14619245"]
[BlackFideId "180165"]
[WhiteElo "2402"]
[BlackElo "2544"]
[Result "0-1"]
[Round "4"]
[TimeControl "180+2"]
[Date "2023.07.25"]
[WhiteClock "0:00:02"]
[BlackClock "0:00:15"]
[Board "149"]

1. d4 {[%clk 0:02:21]}  Nf6 {[%clk 0:02:59]} 2. Nf3 {[%clk 0:02:22]}  c5 {[%clk 0:02:59]} 3. e3 {[%clk 0:02:22]}  g6 {[%clk 0:02:55]} 4. dxc5 {[%clk 0:02:20]}  Qa5+ {[%clk 0:02:54]} 5. Nbd2 {[%clk 0:02:17]}  Qxc5 {[%clk 0:02:54]} 6. a3 {[%clk 0:02:16]}  Qc7 {[%clk 0:02:53]} 7. b4 {[%clk 0:02:16]}  Bg7 {[%clk 0:02:53]} 8. Bb2 {[%clk 0:02:16]}  O-O {[%clk 0:02:53]} 9. Be2 {[%clk 0:02:16]}  b6 {[%clk 0:02:53]} 10. O-O {[%clk 0:02:16]}  Bb7 {[%clk 0:02:53]} 11. c3 {[%clk 0:02:15]}  d6 {[%clk 0:02:54]} 12. Qb3 {[%clk 0:02:14]}  Nbd7 {[%clk 0:02:54]} 13. Rac1 {[%clk 0:02:14]}  Rfc8 {[%clk 0:02:53]} 14. Rfd1 {[%clk 0:02:13]}  h6 {[%clk 0:02:50]} 15. a4 {[%clk 0:02:11]}  Ng4 {[%clk 0:02:42]} 16. h3 {[%clk 0:02:08]}  Nge5 {[%clk 0:02:41]} 17. Nd4 {[%clk 0:02:09]}  Nf6 {[%clk 0:02:37]} 18. c4 {[%clk 0:02:04]}  Rab8 {[%clk 0:02:09]} 19. Nb5 {[%clk 0:01:59]}  Qc6 {[%clk 0:02:06]} 20. Bf1 {[%clk 0:01:57]}  Ra8 {[%clk 0:02:00]} 21. Nd4 {[%clk 0:01:44]}  Qe8 {[%clk 0:01:59]} 22. Ba3 {[%clk 0:01:37]}  Rab8 {[%clk 0:01:56]} 23. Qa2 {[%clk 0:01:34]}  a6 {[%clk 0:01:54]} 24. Qb3 {[%clk 0:01:22]}  Rc7 {[%clk 0:01:42]} 25. Rc2 {[%clk 0:01:13]}  Rbc8 {[%clk 0:01:41]} 26. Rdc1 {[%clk 0:01:13]}  Ne4 {[%clk 0:01:37]} 27. Nb1 {[%clk 0:01:05]}  h5 {[%clk 0:01:26]} 28. Nc3 {[%clk 0:00:34]}  h4 {[%clk 0:01:24]} 29. Nd5 {[%clk 0:00:32]}  Bxd5 {[%clk 0:01:23]} 30. cxd5 {[%clk 0:00:32]}  Nd2 {[%clk 0:01:02]} 31. Rxc7 {[%clk 0:00:17]}  Rxc7 {[%clk 0:01:01]} 32. Qd1 {[%clk 0:00:12]}  Rxc1 {[%clk 0:01:00]} 33. Bxc1 {[%clk 0:00:12]}  Nxf1 {[%clk 0:01:00]} 34. Kxf1 {[%clk 0:00:13]}  b5 {[%clk 0:00:56]} 35. a5 {[%clk 0:00:10]}  Nc4 {[%clk 0:00:55]} 36. Nc6 {[%clk 0:00:10]}  Bf6 {[%clk 0:00:51]} 37. e4 {[%clk 0:00:08]}  Qd7 {[%clk 0:00:42]} 38. Qg4 {[%clk 0:00:07]}  Qe8 {[%clk 0:00:24]} 39. Bg5 {[%clk 0:00:06]}  Kg7 {[%clk 0:00:19]} 40. Bxf6+ {[%clk 0:00:05]}  exf6 {[%clk 0:00:19]} 41. Kg1 {[%clk 0:00:03]}  g5 {[%clk 0:00:17]} 42. Qf5 {[%clk 0:00:03]}  Nd2 {[%clk 0:00:16]} 43. f3 {[%clk 0:00:03]}  Nc4 {[%clk 0:00:15]} 44. Nd4 {[%clk 0:00:02]}  Ne3 {[%clk 0:00:15]} 0-1


[Site "https://www.chess.com"]

[Event "Titled Tuesday Blitz July 25 Early 2023"]
[White "Ramirez Vido, Robert Yorisan"]
[Black "Andreev, Konstantin"]
[WhiteFideId "3513823"]
[BlackFideId "24239305"]
[WhiteElo "2399"]
[BlackElo "2531"]
[Result "0-1"]
[Round "4"]
[TimeControl "180+2"]
[Date "2023.07.25"]
[WhiteClock "0:00:04"]
[BlackClock "0:01:55"]
[Board "152"]

1. f4 {[%clk 0:03:00]}  e5 {[%clk 0:02:55]} 2. fxe5 {[%clk 0:03:00]}  d6 {[%clk 0:02:56]} 3. exd6 {[%clk 0:03:01]}  Bxd6 {[%clk 0:02:56]} 4. Nf3 {[%clk 0:03:02]}  Nf6 {[%clk 0:02:56]} 5. d4 {[%clk 0:03:01]}  O-O {[%clk 0:02:56]} 6. Bg5 {[%clk 0:02:59]}  h6 {[%clk 0:02:56]} 7. Bxf6 {[%clk 0:02:51]}  Qxf6 {[%clk 0:02:55]} 8. e4 {[%clk 0:02:52]}  Qg6 {[%clk 0:02:55]} 9. Nc3 {[%clk 0:02:46]}  Re8 {[%clk 0:02:54]} 10. Qd3 {[%clk 0:02:43]}  c5 {[%clk 0:02:48]} 11. O-O-O {[%clk 0:02:39]}  cxd4 {[%clk 0:02:48]} 12. Nxd4 {[%clk 0:02:33]}  Nc6 {[%clk 0:02:42]} 13. Nxc6 {[%clk 0:02:30]}  Bf4+ {[%clk 0:02:43]} 14. Kb1 {[%clk 0:02:31]}  bxc6 {[%clk 0:02:43]} 15. g3 {[%clk 0:02:25]}  Be5 {[%clk 0:02:42]} 16. Ne2 {[%clk 0:02:11]}  Bg4 {[%clk 0:02:36]} 17. h3 {[%clk 0:01:41]}  Be6 {[%clk 0:02:34]} 18. Nf4 {[%clk 0:01:38]}  Qf6 {[%clk 0:02:30]} 19. Nxe6 {[%clk 0:01:30]}  fxe6 {[%clk 0:02:29]} 20. c3 {[%clk 0:01:20]}  Rab8 {[%clk 0:02:27]} 21. Kc2 {[%clk 0:00:52]}  Qf2+ {[%clk 0:02:18]} 22. Rd2 {[%clk 0:00:44]}  Qb6 {[%clk 0:02:12]} 23. b3 {[%clk 0:00:38]}  Qa5 {[%clk 0:02:02]} 24. Kb1 {[%clk 0:00:28]}  Bxc3 {[%clk 0:01:58]} 25. Rdh2 {[%clk 0:00:04]}  Be5 {[%clk 0:01:55]} 0-1


[Site "https://www.chess.com"]

[Event "Titled Tuesday Blitz July 25 Early 2023"]
[White "Willy, Stephen"]
[Black "Goffredo_Fofi"]
[WhiteFideId "30981468"]
[WhiteElo "2398"]
[BlackElo "2529"]
[Result "1-0"]
[Round "4"]
[TimeControl "180+2"]
[Date "2023.07.25"]
[WhiteClock "0:01:23"]
[BlackClock "0:00:20"]
[Board "153"]

1. e4 {[%clk 0:03:00]}  g6 {[%clk 0:02:28]} 2. d4 {[%clk 0:02:59]}  Bg7 {[%clk 0:02:29]} 3. Nc3 {[%clk 0:03:00]}  c6 {[%clk 0:02:30]} 4. Bc4 {[%clk 0:02:58]}  b5 {[%clk 0:02:26]} 5. Bb3 {[%clk 0:02:57]}  a5 {[%clk 0:02:24]} 6. a3 {[%clk 0:02:58]}  d6 {[%clk 0:02:18]} 7. Nf3 {[%clk 0:02:46]}  Nf6 {[%clk 0:02:06]} 8. h3 {[%clk 0:02:45]}  O-O {[%clk 0:02:06]} 9. Be3 {[%clk 0:02:38]}  Nfd7 {[%clk 0:02:00]} 10. Qd2 {[%clk 0:02:36]}  Na6 {[%clk 0:01:54]} 11. Bh6 {[%clk 0:02:34]}  e5 {[%clk 0:01:49]} 12. Rd1 {[%clk 0:02:21]}  Qe7 {[%clk 0:01:43]} 13. h4 {[%clk 0:02:10]}  Nf6 {[%clk 0:00:57]} 14. Qg5 {[%clk 0:01:51]}  b4 {[%clk 0:00:46]} 15. h5 {[%clk 0:01:39]}  Kh8 {[%clk 0:00:32]} 16. Bxg7+ {[%clk 0:01:29]}  Kxg7 {[%clk 0:00:32]} 17. hxg6 {[%clk 0:01:29]}  fxg6 {[%clk 0:00:28]} 18. Qh6+ {[%clk 0:01:29]}  Kh8 {[%clk 0:00:29]} 19. dxe5 {[%clk 0:01:24]}  dxe5 {[%clk 0:00:25]} 20. Nxe5 {[%clk 0:01:24]}  Qxe5 {[%clk 0:00:20]} 21. Qxf8+ {[%clk 0:01:23]} 1-0


[Site "https://www.chess.com"]

[Event "Titled Tuesday Blitz July 25 Early 2023"]
[White "Bilan, Danila"]
[Black "dodoucb"]
[WhiteFideId "24161918"]
[WhiteElo "2527"]
[BlackElo "2397"]
[Result "1-0"]
[Round "4"]
[TimeControl "180+2"]
[Date "2023.07.25"]
[WhiteClock "0:00:04"]
[BlackClock "0:00:27"]
[Board "154"]

1. d4 {[%clk 0:03:00]}  Nf6 {[%clk 0:02:59]} 2. Nf3 {[%clk 0:03:00]}  e6 {[%clk 0:02:59]} 3. g3 {[%clk 0:03:01]}  b6 {[%clk 0:03:00]} 4. Bg2 {[%clk 0:03:01]}  Bb7 {[%clk 0:03:00]} 5. O-O {[%clk 0:03:01]}  g6 {[%clk 0:03:00]} 6. c4 {[%clk 0:03:00]}  Bg7 {[%clk 0:03:00]} 7. Nc3 {[%clk 0:03:01]}  Ne4 {[%clk 0:03:00]} 8. Qc2 {[%clk 0:02:54]}  Nxc3 {[%clk 0:02:56]} 9. Qxc3 {[%clk 0:02:48]}  c5 {[%clk 0:02:55]} 10. Bg5 {[%clk 0:02:15]}  Qc7 {[%clk 0:02:31]} 11. Qd3 {[%clk 0:02:03]}  Nc6 {[%clk 0:02:04]} 12. Bf4 {[%clk 0:01:52]}  Qc8 {[%clk 0:01:45]} 13. dxc5 {[%clk 0:01:33]}  bxc5 {[%clk 0:01:45]} 14. Bd6 {[%clk 0:01:31]}  Nd4 {[%clk 0:01:45]} 15. Nxd4 {[%clk 0:01:18]}  cxd4 {[%clk 0:01:40]} 16. c5 {[%clk 0:01:10]}  Bxg2 {[%clk 0:01:32]} 17. Kxg2 {[%clk 0:01:10]}  Qc6+ {[%clk 0:01:32]} 18. Qf3 {[%clk 0:01:05]}  e5 {[%clk 0:01:30]} 19. b4 {[%clk 0:00:46]}  f5 {[%clk 0:01:27]} 20. b5 {[%clk 0:00:37]}  Qxf3+ {[%clk 0:01:23]} 21. Kxf3 {[%clk 0:00:33]}  Kf7 {[%clk 0:01:20]} 22. Kg2 {[%clk 0:00:27]}  Ke6 {[%clk 0:01:19]} 23. a4 {[%clk 0:00:24]}  Rac8 {[%clk 0:01:15]} 24. Rfc1 {[%clk 0:00:22]}  Kd5 {[%clk 0:01:13]} 25. a5 {[%clk 0:00:22]}  Bf8 {[%clk 0:01:13]} 26. Bxf8 {[%clk 0:00:17]}  Rhxf8 {[%clk 0:01:14]} 27. b6 {[%clk 0:00:12]}  Rxc5 {[%clk 0:01:09]} 28. b7 {[%clk 0:00:04]}  d6 {[%clk 0:00:49]} 29. a6 {[%clk 0:00:03]}  e4 {[%clk 0:00:41]} 30. Rab1 {[%clk 0:00:03]}  Rb8 {[%clk 0:00:41]} 31. Kf1 {[%clk 0:00:02]}  g5 {[%clk 0:00:40]} 32. Ke1 {[%clk 0:00:02]}  f4 {[%clk 0:00:40]} 33. Kd2 {[%clk 0:00:02]}  Kc6 {[%clk 0:00:38]} 34. f3 {[%clk 0:00:01]}  e3+ {[%clk 0:00:34]} 35. Kd3 {[%clk 0:00:02]}  Rxc1 {[%clk 0:00:34]} 36. Rxc1+ {[%clk 0:00:01]}  Kb6 {[%clk 0:00:35]} 37. Rc8 {[%clk 0:00:01]}  g4 {[%clk 0:00:25]} 38. Rxb8 {[%clk 0:00:01]}  gxf3 {[%clk 0:00:25]} 39. exf3 {[%clk 0:00:01]}  e2 {[%clk 0:00:25]} 40. Re8 {[%clk 0:00:01]}  e1=Q {[%clk 0:00:26]} 41. Rxe1 {[%clk 0:00:01]}  d5 {[%clk 0:00:26]} 42. Rc1 {[%clk 0:00:02]}  Kxa6 {[%clk 0:00:27]} 43. b8=Q {[%clk 0:00:03]}  Ka5 {[%clk 0:00:27]} 44. Ra1# {[%clk 0:00:04]} 1-0


[Site "https://www.chess.com"]

[Event "Titled Tuesday Blitz July 25 Early 2023"]
[White "Tarasova, Viktoriya"]
[Black "Santos Flores, Alberto"]
[WhiteFideId "4175840"]
[BlackFideId "3601234"]
[WhiteElo "2388"]
[BlackElo "2524"]
[Result "0-1"]
[Round "4"]
[TimeControl "180+2"]
[Date "2023.07.25"]
[WhiteClock "0:00:03"]
[BlackClock "0:00:44"]
[Board "156"]

1. d4 {[%clk 0:03:00]}  d5 {[%clk 0:03:00]} 2. c4 {[%clk 0:03:00]}  c6 {[%clk 0:03:00]} 3. Nf3 {[%clk 0:03:00]}  Nf6 {[%clk 0:03:00]} 4. Nc3 {[%clk 0:03:00]}  dxc4 {[%clk 0:03:00]} 5. a4 {[%clk 0:03:00]}  Bf5 {[%clk 0:03:00]} 6. Ne5 {[%clk 0:03:00]}  e6 {[%clk 0:03:00]} 7. f3 {[%clk 0:02:58]}  Bb4 {[%clk 0:03:00]} 8. Nxc4 {[%clk 0:02:57]}  O-O {[%clk 0:03:00]} 9. Kf2 {[%clk 0:02:57]}  c5 {[%clk 0:02:55]} 10. e4 {[%clk 0:02:34]}  Bg6 {[%clk 0:02:55]} 11. Be3 {[%clk 0:02:30]}  cxd4 {[%clk 0:02:55]} 12. Qxd4 {[%clk 0:02:29]}  Qxd4 {[%clk 0:02:53]} 13. Bxd4 {[%clk 0:02:29]}  Nc6 {[%clk 0:02:54]} 14. Be3 {[%clk 0:02:20]}  Rfd8 {[%clk 0:02:50]} 15. Be2 {[%clk 0:02:11]}  Nd4 {[%clk 0:02:49]} 16. Rad1 {[%clk 0:01:58]}  Nxe2 {[%clk 0:02:42]} 17. Nxe2 {[%clk 0:01:49]}  Nd7 {[%clk 0:02:35]} 18. h4 {[%clk 0:01:11]}  f6 {[%clk 0:02:30]} 19. Nf4 {[%clk 0:01:06]}  Bf7 {[%clk 0:02:29]} 20. Nd6 {[%clk 0:01:06]}  Nc5 {[%clk 0:02:22]} 21. Nxf7 {[%clk 0:01:01]}  Kxf7 {[%clk 0:02:23]} 22. Bxc5 {[%clk 0:01:01]}  Bxc5+ {[%clk 0:02:23]} 23. Ke2 {[%clk 0:01:02]}  Ke7 {[%clk 0:01:55]} 24. h5 {[%clk 0:00:58]}  a6 {[%clk 0:01:45]} 25. Rxd8 {[%clk 0:00:57]}  Rxd8 {[%clk 0:01:45]} 26. Rc1 {[%clk 0:00:54]}  Bb4 {[%clk 0:01:30]} 27. Nd3 {[%clk 0:00:53]}  Bd6 {[%clk 0:01:30]} 28. Rc3 {[%clk 0:00:51]}  Kd7 {[%clk 0:01:28]} 29. g4 {[%clk 0:00:47]}  Rc8 {[%clk 0:01:26]} 30. Rxc8 {[%clk 0:00:46]}  Kxc8 {[%clk 0:01:27]} 31. Kd2 {[%clk 0:00:46]}  Kd7 {[%clk 0:01:26]} 32. Kc3 {[%clk 0:00:47]}  Kc6 {[%clk 0:01:24]} 33. Kc4 {[%clk 0:00:47]}  b5+ {[%clk 0:01:24]} 34. axb5+ {[%clk 0:00:47]}  axb5+ {[%clk 0:01:24]} 35. Kc3 {[%clk 0:00:48]}  g6 {[%clk 0:01:18]} 36. hxg6 {[%clk 0:00:45]}  hxg6 {[%clk 0:01:19]} 37. b4 {[%clk 0:00:45]}  f5 {[%clk 0:01:17]} 38. exf5 {[%clk 0:00:38]}  exf5 {[%clk 0:01:16]} 39. gxf5 {[%clk 0:00:38]}  gxf5 {[%clk 0:01:16]} 40. Kd4 {[%clk 0:00:38]}  Bg3 {[%clk 0:01:12]} 41. Nc1 {[%clk 0:00:23]}  Kd6 {[%clk 0:01:08]} 42. Nd3 {[%clk 0:00:24]}  Bh2 {[%clk 0:01:03]} 43. f4 {[%clk 0:00:23]}  Bg1+ {[%clk 0:01:02]} 44. Kc3 {[%clk 0:00:18]}  Kd5 {[%clk 0:01:03]} 45. Nc1 {[%clk 0:00:07]}  Ke4 {[%clk 0:00:57]} 46. Ne2 {[%clk 0:00:07]}  Bf2 {[%clk 0:00:54]} 47. Kc2 {[%clk 0:00:03]}  Bd4 {[%clk 0:00:50]} 48. Nc3+ {[%clk 0:00:02]}  Bxc3 {[%clk 0:00:49]} 49. Kxc3 {[%clk 0:00:02]}  Kxf4 {[%clk 0:00:49]} 50. Kd4 {[%clk 0:00:03]}  Kg4 {[%clk 0:00:46]} 51. Kc5 {[%clk 0:00:04]}  f4 {[%clk 0:00:46]} 52. Kxb5 {[%clk 0:00:04]}  f3 {[%clk 0:00:47]} 53. Kc6 {[%clk 0:00:04]}  f2 {[%clk 0:00:48]} 54. b5 {[%clk 0:00:05]}  f1=Q {[%clk 0:00:48]} 55. b6 {[%clk 0:00:06]}  Qc4+ {[%clk 0:00:47]} 56. Kd7 {[%clk 0:00:03]}  Qd5+ {[%clk 0:00:46]} 57. Kc7 {[%clk 0:00:04]}  Qc5+ {[%clk 0:00:47]} 58. Kb7 {[%clk 0:00:04]}  Kf5 {[%clk 0:00:47]} 59. Ka6 {[%clk 0:00:02]}  Qa3+ {[%clk 0:00:46]} 60. Kb7 {[%clk 0:00:02]}  Ke6 {[%clk 0:00:46]} 61. Kc7 {[%clk 0:00:03]}  Qc5+ {[%clk 0:00:45]} 62. Kb7 {[%clk 0:00:02]}  Kd6 {[%clk 0:00:45]} 63. Ka8 {[%clk 0:00:03]}  Qa5+ {[%clk 0:00:44]} 0-1


[Site "https://www.chess.com"]

[Event "Titled Tuesday Blitz July 25 Early 2023"]
[White "Turzo, Attila"]
[Black "Rosenberg, Evan S"]
[WhiteFideId "704954"]
[BlackFideId "2019299"]
[WhiteElo "2500"]
[BlackElo "2386"]
[Result "1-0"]
[Round "4"]
[TimeControl "180+2"]
[Date "2023.07.25"]
[WhiteClock "0:00:46"]
[BlackClock "0:00:01"]
[Board "159"]

1. d4 {[%clk 0:03:00]}  d5 {[%clk 0:02:59]} 2. c4 {[%clk 0:03:00]}  e6 {[%clk 0:02:59]} 3. Nf3 {[%clk 0:03:00]}  c5 {[%clk 0:02:58]} 4. cxd5 {[%clk 0:02:57]}  exd5 {[%clk 0:02:57]} 5. Bg5 {[%clk 0:02:56]}  Qb6 {[%clk 0:02:49]} 6. Nc3 {[%clk 0:02:49]}  Be6 {[%clk 0:02:46]} 7. Na4 {[%clk 0:02:44]}  Qc7 {[%clk 0:02:27]} 8. dxc5 {[%clk 0:02:36]}  Bxc5 {[%clk 0:02:26]} 9. Rc1 {[%clk 0:02:34]}  Bb4+ {[%clk 0:02:23]} 10. Bd2 {[%clk 0:02:33]}  Bxd2+ {[%clk 0:02:21]} 11. Qxd2 {[%clk 0:02:33]}  Nc6 {[%clk 0:02:21]} 12. e3 {[%clk 0:02:28]}  Nge7 {[%clk 0:02:21]} 13. Be2 {[%clk 0:02:23]}  O-O {[%clk 0:02:22]} 14. O-O {[%clk 0:02:24]}  Rad8 {[%clk 0:02:21]} 15. Nc5 {[%clk 0:02:16]}  Qb8 {[%clk 0:02:08]} 16. Rfd1 {[%clk 0:02:12]}  Rfe8 {[%clk 0:01:50]} 17. b4 {[%clk 0:02:08]}  Ng6 {[%clk 0:01:38]} 18. Nxe6 {[%clk 0:01:58]}  fxe6 {[%clk 0:01:38]} 19. b5 {[%clk 0:01:57]}  Nce5 {[%clk 0:01:38]} 20. Qb4 {[%clk 0:01:57]}  Nxf3+ {[%clk 0:01:34]} 21. Bxf3 {[%clk 0:01:57]}  Rf8 {[%clk 0:01:31]} 22. Be2 {[%clk 0:01:46]}  Qe5 {[%clk 0:01:28]} 23. Qd4 {[%clk 0:01:35]}  Qb8 {[%clk 0:01:18]} 24. f4 {[%clk 0:01:30]}  e5 {[%clk 0:01:13]} 25. fxe5 {[%clk 0:01:27]}  Nxe5 {[%clk 0:01:14]} 26. Rf1 {[%clk 0:01:26]}  Rxf1+ {[%clk 0:00:49]} 27. Rxf1 {[%clk 0:01:25]}  b6 {[%clk 0:00:47]} 28. Rf5 {[%clk 0:01:23]}  Ng6 {[%clk 0:00:31]} 29. Rxd5 {[%clk 0:01:21]}  Rxd5 {[%clk 0:00:32]} 30. Qxd5+ {[%clk 0:01:22]}  Kh8 {[%clk 0:00:32]} 31. Bc4 {[%clk 0:01:20]}  h6 {[%clk 0:00:28]} 32. g3 {[%clk 0:01:16]}  Ne5 {[%clk 0:00:28]} 33. a4 {[%clk 0:01:09]}  Qe8 {[%clk 0:00:22]} 34. Qe6 {[%clk 0:01:02]}  Qxe6 {[%clk 0:00:15]} 35. Bxe6 {[%clk 0:01:03]}  Nd3 {[%clk 0:00:16]} 36. Bb3 {[%clk 0:00:56]}  Nc5 {[%clk 0:00:16]} 37. Bc2 {[%clk 0:00:56]}  g5 {[%clk 0:00:17]} 38. Kf2 {[%clk 0:00:55]}  Kg7 {[%clk 0:00:18]} 39. Kf3 {[%clk 0:00:51]}  h5 {[%clk 0:00:18]} 40. h4 {[%clk 0:00:51]}  Kf6 {[%clk 0:00:17]} 41. hxg5+ {[%clk 0:00:50]}  Kxg5 {[%clk 0:00:17]} 42. e4 {[%clk 0:00:51]}  Ne6 {[%clk 0:00:16]} 43. e5 {[%clk 0:00:48]}  Nd4+ {[%clk 0:00:16]} 44. Ke4 {[%clk 0:00:48]}  Nxc2 {[%clk 0:00:17]} 45. Kd5 {[%clk 0:00:48]}  Kf5 {[%clk 0:00:13]} 46. e6 {[%clk 0:00:47]}  Nb4+ {[%clk 0:00:08]} 47. Kd6 {[%clk 0:00:47]}  Kf6 {[%clk 0:00:02]} 48. e7 {[%clk 0:00:46]}  Kf7 {[%clk 0:00:01]} 49. Kd7 {[%clk 0:00:46]} 1-0


[Site "https://www.chess.com"]

[Event "Titled Tuesday Blitz July 25 Early 2023"]
[White "Qiao, Cindy"]
[Black "Shubenkova, Veronika"]
[WhiteFideId "2620243"]
[BlackFideId "44124040"]
[WhiteElo "2383"]
[BlackElo "2500"]
[Result "0-1"]
[Round "4"]
[TimeControl "180+2"]
[Date "2023.07.25"]
[WhiteClock "0:00:10"]
[BlackClock "0:00:44"]
[Board "160"]

1. d4 {[%clk 0:03:00]}  d5 {[%clk 0:02:59]} 2. Bf4 {[%clk 0:03:00]}  e6 {[%clk 0:02:59]} 3. e3 {[%clk 0:03:01]}  Bd6 {[%clk 0:02:59]} 4. Bxd6 {[%clk 0:03:00]}  Qxd6 {[%clk 0:02:59]} 5. Qg4 {[%clk 0:03:00]}  g6 {[%clk 0:02:58]} 6. Nd2 {[%clk 0:02:47]}  Ne7 {[%clk 0:02:55]} 7. h4 {[%clk 0:02:32]}  e5 {[%clk 0:02:53]} 8. Qg3 {[%clk 0:02:11]}  Nd7 {[%clk 0:02:49]} 9. Ngf3 {[%clk 0:02:08]}  Nf5 {[%clk 0:02:44]} 10. Qh2 {[%clk 0:02:01]}  Qb4 {[%clk 0:02:41]} 11. Nxe5 {[%clk 0:01:51]}  Qxb2 {[%clk 0:02:35]} 12. Rb1 {[%clk 0:01:47]}  Qxa2 {[%clk 0:02:09]} 13. Bd3 {[%clk 0:01:30]}  Nf6 {[%clk 0:02:07]} 14. O-O {[%clk 0:01:03]}  O-O {[%clk 0:01:58]} 15. Ndf3 {[%clk 0:00:51]}  b6 {[%clk 0:01:49]} 16. Nc6 {[%clk 0:00:43]}  Qa4 {[%clk 0:01:39]} 17. Bb5 {[%clk 0:00:20]}  Qxc2 {[%clk 0:01:39]} 18. Rfc1 {[%clk 0:00:20]}  Qe4 {[%clk 0:01:36]} 19. Qxc7 {[%clk 0:00:18]}  Be6 {[%clk 0:01:32]} 20. Qh2 {[%clk 0:00:15]}  Ng4 {[%clk 0:01:29]} 21. Qh3 {[%clk 0:00:14]}  Nxf2 {[%clk 0:00:58]} 22. Kxf2 {[%clk 0:00:11]}  Qxe3+ {[%clk 0:00:58]} 23. Kf1 {[%clk 0:00:11]}  Nxd4 {[%clk 0:00:52]} 24. Qg3 {[%clk 0:00:09]}  Nxb5 {[%clk 0:00:47]} 25. Rxb5 {[%clk 0:00:10]}  Qxc1+ {[%clk 0:00:44]} 0-1


[Site "https://www.chess.com"]